Cogmind - Beta 9.6 @@@ ROGUE MODE // 2020.08.06 @ 10:18:25 Player: Grey_Frog Result: Destroyed by G-34 Mercenary with Small Laser Performance ------------- Evolutions (0) 0 Regions Visited (1) 200 Robots Destroyed (15) 75 Value Destroyed (221) 221 Prototype IDs (2) 40 Alien Tech Used (0) 0 Bonus (0) 0 TOTAL SCORE: 536 Bonus ------- None Cogmind --------- Core Integrity 0/250 Matter 298/300 Energy 96/100 System Corruption 0% Temperature Cool (6) Movement Core (550) Ox10 Location -10/Materials Parts ------- > --- POWER (1) -------- (None) > --- PROPULSION (2) --- Wheel > --- UTILITY (2) ------ High-capacity Storage Unit > --- WEAPON (2) ------- (None) > --- INVENTORY (12) --- Heat Sink Medium Storage Unit Medium Storage Unit Terrain Scanner Seismic Analyzer Propulsion Shielding Propulsion Shielding Mining Laser Peak State ------------ > --- POWER ------------ Light Ion Engine > --- PROPULSION ------- Light Treads Light Treads > --- UTILITY ---------- High-capacity Storage Unit Improved Terrain Scanner > --- WEAPON ----------- EM Pulse Gun Assault Rifle > --- INVENTORY -------- Aluminum Leg Aluminum Leg Small Storage Unit Medium Storage Unit Medium Storage Unit Terrain Scanner Seismic Analyzer Propulsion Shielding Propulsion Shielding Light Armor Plating Light Assault Rifle Mining Laser [Rating: 9] Favorites ----------- Power Light Ion Engine Engine Light Ion Engine Propulsion Light Treads Treads Light Treads Leg Aluminum Leg Wheel Wheel Utility High-capacity Storage Unit Device Improved Terrain Scanner Storage High-capacity Storage Unit Protection Light Armor Plating Weapon Assault Rifle Energy Gun EM Pulse Gun Ballistic Gun Assault Rifle Build | -11 -10 ------- Run | Scr Mat Slots Evolved . | . . Power . | . . Propulsion . | . . Utility . | . . Weapon . | . . Parts Attached 20 | 7 13 Power 1 | 1 . Engine 1 | 1 . Core . | . . Reactor . | . . Propulsion 7 | 2 5 Treads 2 | 2 . Leg 3 | . 3 Wheel 2 | . 2 Hover . | . . Flight . | . . Utility 8 | 2 6 Device 2 | 1 1 Storage 4 | 1 3 Processor . | . . Hackware . | . . Protection 2 | . 2 Artifact . | . . Weapon 4 | 2 2 Energy Gun 1 | 1 . Energy Cannon . | . . Ballistic Gun 3 | 1 2 Ballistic Cannon . | . . Launcher . | . . Special Weapon . | . . Impact Weapon . | . . Slashing Weapon . | . . Piercing Weapon . | . . Special Melee Weapon . | . . Unidentified Prototypes . | . . Parts Lost 12 | . 12 Power 1 | . 1 Propulsion 4 | . 4 Utility 3 | . 3 Weapon 4 | . 4 Highest Loss Streak 5 | . 5 Average Slot Usage (%) 96 | . 96 Engine 13 | . 13 Treads 22 | . 22 Leg 4 | . 4 Wheel 1 | . 1 Device 5 | . 5 Storage 19 | . 19 Protection 3 | . 3 Energy Gun 10 | . 10 Ballistic Gun 16 | . 16 Naked Turns . | . . Heaviest Build 47 | 12 47 Greatest Support 40 | 40 40 Greatest Overweight (x) 3 | . 3 Average Overweight (x) . | . . Largest Inventory Capacity 16 | 6 16 Average Capacity 10 | 5 11 Most Carried 14 | 6 14 Average Carried 8 | 3 9 Final Capacity 12 | 6 12 Final Carried 8 | 5 8 Class Distribution -------------------- 100% | Mutant Dominant Class ---------------- Mutant | -10/Materials Resources | -11 -10 ----------- Run | Scr Mat Matter Collected 525 | 285 240 Remotely . | . . Salvage Created 469 | 147 322 Parts 34 | 12 22 Haulers Intercepted . | . . Recyclers Shooed . | . . Parts Field Recycled . | . . Retrieved Matter . | . . Parts Self-Destructed . | . . Prevented . | . . Kills | -11 -10 ------- Run | Scr Mat Combat Hostiles Destroyed 7 | . 7 Guns 7 | . 7 Classes Destroyed 7 | 3 4 Worker 1 | 1 . Builder 1 | . 1 Tunneler 3 | 3 . Recycler 2 | 1 1 Watcher 1 | . 1 Swarmer 3 | . 3 Grunt 4 | . 4 Best Kill Streak 5 | 2 5 Combat Bots Only 3 | . 3 Max Kills in Single Turn 1 | 1 1 Gunslinging . | . . Exploded . | . . Melee . | . . Uniques/NPCs Destroyed . | . . Combat | -11 -10 -------- Run | Scr Mat Damage Taken 1386 | 34 1352 Core 255 | . 255 Absorbed by Shields . | . . Core Remaining (%) 100 | 100 . Volleys Fired 62 | 7 55 Largest 2 | 2 2 Hottest 60 | 60 60 Shots Fired 104 | 14 90 Gun 104 | 14 90 Cannon . | . . Launcher . | . . Special . | . . Kinetic 82 | 7 75 Thermal . | . . Explosive . | . . Electromagnetic 22 | 7 15 Robot Hit Streak 9 | 3 9 Robot Miss Streak 4 | 3 4 Penetration Max . | . . Secondary Targets 1 | . 1 Max Gunslinging Chain 1 | . 1 Shots Hit Robots 60 | 5 55 Core Hits 28 | 5 23 Critical Hits 1 | . 1 Critical Kills 1 | . 1 Critical Parts Destroyed . | . . Melee Attacks . | . . Impact . | . . Slashing . | . . Piercing . | . . Sneak Attacks . | . . Combat Hostiles . | . . Follow-up Attacks . | . . Damage Inflicted 861 | 178 683 Guns 778 | 95 683 Cannons . | . . Explosions 83 | 83 . Melee . | . . Ramming . | . . Kinetic 544 | 27 517 Thermal 83 | 83 . Explosive . | . . Electromagnetic 234 | 68 166 Impact . | . . Slashing . | . . Piercing . | . . Highest Corruption . | . . Average Corruption . | . . Corruption Purged . | . . Overload Shots . | . . Overflow Damage . | . . Projectiles . | . . Explosions . | . . Melee . | . . Knockbacks . | . . Impact . | . . Kinetic . | . . Secondary . | . . Self-Inflicted Damage 35 | 35 . Shots 1 | 1 . Rammed . | . . Targets Rammed . | . . Kicked . | . . Crushed . | . . Highest Temperature 102 | 12 102 Average Temperature 27 | 12 28 Received Heat Transfer 651 | . 651 Siege Activations . | . . Robots Corrupted . | . . Combat Hostiles . | . . Parts Fried . | . . Impact Corruptions . | . . Robots Melted . | . . Combat Hostiles . | . . Parts Melted . | . . Heat Transferred 150 | 150 . Parts Sabotaged . | . . Parts Stolen . | . . Parts Stripped . | . . Power Chain Reactions 1 | 1 . Missiles Intercepted . | . . Alert | -11 -10 ------- Run | Scr Mat Peak Influence 94 | 25 94 Average Influence 17 | 7 19 Maximum Alert Level . | . . Low Security (%) 100 | 100 100 Level 1 . | . . Level 2 . | . . Level 3 . | . . Level 4 . | . . Level 5 . | . . High Security . | . . Max Security . | . . Squads Dispatched 2 | . 2 Investigation 1 | . 1 Extermination . | . . Reinforcement 1 | . 1 Assault . | . . Garrison . | . . Intercept . | . . Construction Impeded . | . . Haulers Reinforced . | . . Stealth | -11 -10 --------- Run | Scr Mat Distress Signals . | . . Communications Jammed . | . . Distress Signals . | . . Times Spotted 14 | . 14 Peak Tracking Total 5 | . 5 Tactical Retreats 2 | . 2 Traps | -11 -10 ------- Run | Scr Mat Traps Triggered . | . . Indirectly . | . . Trap Hack Attempts . | . . Triggered . | . . Disarmed . | . . Reprogrammed . | . . Reused . | . . Traps Extracted . | . . Installed . | . . Triggered . | . . Machines | -11 -10 ---------- Run | Scr Mat Machines Disabled . | . . Max in Single Turn . | . . Machines Sabotaged . | . . Garrisons Compromised . | . . Overloaded Fab Kills . | . . Fab Network Shutdowns . | . . Hacking | -11 -10 --------- Run | Scr Mat Machines Accessed 7 | . 7 Terminals 5 | . 5 Fabricators . | . . Repair Stations . | . . Recycling Units 2 | . 2 Scanalyzers . | . . Garrison Access . | . . Total Hacks 20 | . 20 Successful 11 | . 11 Failed 9 | . 9 Catastrophic 2 | . 2 Database Lockouts . | . . Manual 3 | . 3 Terminals 17 | . 17 Fabricators . | . . Repair Stations . | . . Recycling Units 3 | . 3 Scanalyzers . | . . Garrison Access . | . . Terminal Hacks 9 | . 9 Record 1 | . 1 Prototype ID Bank 1 | . 1 Emergency Access Points 1 | . 1 Unreport Threat 1 | . 1 Locate Traps 2 | . 2 Maintenance Status 1 | . 1 Zone Layout 2 | . 2 Fabricator Hacks . | . . Repair Station Hacks . | . . Recycling Unit Hacks 2 | . 2 Report Inventory 2 | . 2 Scanalyzer . | . . Garrison Access Hacks . | . . Unauthorized Hacks . | . . Terminals . | . . Fabricators . | . . Repair Stations . | . . Recycling Units . | . . Scanalyzers . | . . Garrison Access . | . . Data Cores Recovered . | . . Used . | . . Hacking Detections 6 | . 6 Full Trace Events 2 | . 2 Feedback Events . | . . Feedback Blocked . | . . Robot Schematics Acquired . | . . Robots Built . | . . Matter . | . . Time . | . . Total Robot Build Rating . | . . Part Schematics Acquired . | . . Parts Built . | . . Matter . | . . Time . | . . Total Part Build Rating . | . . Parts Repaired . | . . Time . | . . Parts Recycled . | . . Recycled Matter . | . . Retrieved Matter . | . . Retrieved Components . | . . Parts Scanalyzed . | . . Part Schematics Acquired . | . . Parts Damaged . | . . Bothacking | -11 -10 ------------ Run | Scr Mat Used RIF Installer . | . . Robots Hacked . | . . Non-combat . | . . Combat . | . . Robot Hacks Applied . | . . Relay Couplers Released . | . . Robots Rewired . | . . Allies Hacked . | . . Hacks Repelled . | . . Allies | -11 -10 -------- Run | Scr Mat Total Allies . | . . Largest Group . | . . Highest-Rated Group . | . . Highest-Rated Ally . | . . Total Orders . | . . Ally Attacks . | . . Total Damage . | . . Kills . | . . Allies Corrupted . | . . Allies Melted . | . . Intel | -11 -10 ------- Run | Scr Mat Robot Analysis Total . | . . Derelict Logs Recovered . | . . Drone Launches . | . . Drone Recoveries . | . . Exploration | -11 -10 ------------- Run | Scr Mat Turns Passed 1206 | 219 987 Spaces Moved 601 | 115 486 Core 2 | 2 . Treads 513 | 113 400 Legs 65 | . 65 Wheels 21 | . 21 Hover . | . . Flight . | . . Fastest Speed 50 | 50 90 Average Speed 164 | 158 165 Slowest Speed 210 | 160 210 Overloaded Moves . | . . Propulsion Burnouts . | . . Robots Hopped . | . . Cave-ins Triggered . | . . Exploration Rate (%) 27 | 7 47 Regions Visited 1 Branch Regions . Pre-discovered Areas . | . . Known Exits Taken . | . . Unknown Exits Taken 1 | 1 . Scrap Searched . | . . Spaces Dug . | . . Terrain Destroyed 1 | 1 . Melee . | . . Projectile . | . . AOE 1 | 1 . Actions | -11 -10 --------- Run | Scr Mat Total 722 | 136 586 Wait 16 | . 16 Move 600 | 114 486 Hop . | . . Pick Up 18 | 7 11 Fast Attach 10 | 6 4 Attach 6 | 1 5 Detach 1 | . 1 Swap 4 | . 4 Drop 5 | 1 4 Fire 62 | 7 55 Melee . | . . Ram . | . . Kick . | . . Crush . | . . Escape Stasis . | . . Rewire . | . . Trap . | . . Miscellaneous . | . . Route ------- -11/Scrapyard -10/Materials (discovered 1 exit: [*Mat]) History --------- Turn | Location | Event 17 | -11/Scrapyard | Discovered new exit (range 13) 220 | -11/Scrapyard | Entered Materials 316 | -10/Materials | Build established: Mutant 569 | -10/Materials | Discovered new exit (range 16) 1022 | -10/Materials | Lost 3 parts (1n1u1w) 1158 | -10/Materials | Core integrity fell below 50% 1180 | -10/Materials | Core integrity fell below 20% 1186 | -10/Materials | Lost 5 parts (1p1n1u2w) 1207 | -10/Materials | Destroyed by G-34 Mercenary with Small Laser Last Messages --------------- 01130_ Acquired 3 matter. 01132_ A-02 Transporter destroyed. 01133_ S-10 Pest suffers critical hit. 01133_ S-10 Pest destroyed. 01136_ R-06 Scavenger collects Flight Unit. 01139_ Lgt. Ion Engine destroyed. 01143_ Lgt. Armor Plating destroyed. 01148_ S-10 Pest destroyed. 01153_ Aluminum Leg destroyed. 01155_ Lgt. Assault Rifle destroyed. 01158_ Acquired Wheel. 01164_ Acquired 30 matter. 01168_ Acquired Lgt. Assault Rifle. 01182_ Acquired 16 matter. 01186_ Acquired 1 matter. 01192_ Lgt. Armor Plating destroyed. 01197_ Wheel destroyed. 01204_ Lgt. Assault Rifle destroyed. 01205_ U-05 Engineer builds a Door. 01206_ Aluminum Leg destroyed. Map ----- +----------------------------------------------------+ | | | | | | | | | | | ???????#??????????#??????????????????????????????? | | ???????????????#?????????????????????????????????? | | ????????????????????????????#????????????????????? | | ##################???????????????????????????????? | | #??#????????????????????????????? | | ^ ^ #???????#???????????????????????? | | ####^ "#?????#????????#????????????????? | | # T#???????####????????????????????? | | # ^""" "#???##### ??? ????????????????? | | # """ ^ ##??# # ????????????????????? | | ! # ^""" ##??# < # ? ? ?????????##+#???? | | *# ##### # ""????????#### ?? | | + # """" #????+^ ?? | | #### # """" #????# ?? | | ???# ### # #????# #??? | | ???# ######### #?# # """" #????# #???? | | ??## ## # #?# # """" #?? ?# #???? | | #### ## T # #?# # """" ###### #???? | | ## # ### g # ## #???? | | + + #?# ###+###### #???? | | ##+###+## # #?# @ u #???? | | # # #?# g% * =![#???? | | ######## #?# g ==== =![#???? | | ######?# #?##############%%%=! =! #???? | | ##"""#?# #?#?###???????##%=== ##### | | ##########"Y"#?# #?##??#????????# % # | | ??# ##" "### ########?####### #"" | | ?## # # # #?# # #"T | | ### + # # #?# #"" | | ## # ! / / ### + | | ## # # # / ####### | | ### ## # # ### ##"###?????# | | #?# ## # # #?## ##? ???????# | | ### #####+### #########?# ##? ???????##### | | ### # + #?"???????# #?? "???????????? | | ##T # ! "T" # #?????????# #?? ""??????????? | | ### # # #?? ??????# #?? ""??#???????? | | #### ######### ???????^^ #?? ? ????????? | | ######### ?????^^ #?###???????????? | | ??? ^^ ???????????? ??? | | ###########+## ? ### ##?????#?????#???? | | ###/#####?# ?########?# #????????????????? | | # #?# #??????#??#/#??#???????#?????? | | # #?# """ """ #??????? ? ???#?????????????? | | # #?# """ """ #??????? ?? ???#?#???????????? | +----------------------------------------------------+ Best States ------------- Heat Dissipation 25 Energy Generation 10 Energy Capacity 125 Matter Stores 300 Matter Capacity 300 Sight Range 16 Terrain Scan Range 16 Terrain Scan Density 10 Armor Coverage 150 Evasion (%) 40 Recoil Reduction 2 Item Schematics ----------------- None Robot Schematics ------------------ None Fabricated ------------ Nothing Alien Tech Used ----------------- None Achievements -------------- None Challenges ------------ None Game ------ Seed CooledReflectiveHammer Manual? 0 Play Time 00:12:50 Cumulative 18.0 hours Start 2020.08.06 @ 10:05:59 End 2020.08.06 @ 10:18:25 Sessions 1 Manual Loads 0 Difficulty Rogue Special Mode None Game No. 19 Rogue 19 Adventurer 0 Explorer 0 Win Type - Total 0 Types 0/0/0/0/0/0/0 Lore% 10 Gallery% 20 Achievement% 17 Wizard Run 0 Options --------- ASCII 0 Keyboard 1 Movement Arrows Keybinds 0 Fullscreen 1 Font 12/Terminus Map View 83x54 Tactical HUD 1 Map Filters NONE Filters NONE Steam 1 RUN: e7d73056-c6a1-49ed-9364-bbe9c314ae6c